Workbook

Sheet Methanol
A1: T °R | B1: T,°F | C1: Vapor Pressure | G1: °K | H1: x | I1: pvp,bars | K1: gal/MMSCF
C2: psi
A3: =B3+459.7 -> 559.7 | B3: 100 | C3: =I3*14.504 -> 4.639695649 | G3: =A3/1.8 -> 310.9444444 | H3: =1-G3/512.6 -> 0.3933974943 | I3: =80.9*EXP((1-H3)^(-1)*((-8.54796*H3)+0.76982*H3^1.5-3.1085*H3^3+1.54481*H3^6)) -> 0.3198907645 | K3: =1000000*C3/600/379.5*32/6.6 -> 98.7944403
A4: 534.7 | B4: 75 | C4: 2.324145922 | G4: 297.0555556 | H4: 0.4204924784 | I4: 0.1602417211 | K4: 49.48874084
A5: 509.7 | B5: 50 | C5: 1.079974007 | G5: 283.1666667 | H5: 0.4475874626 | I5: 0.07446042516 | K5: 22.99621259
A6: 484.7 | B6: 25 | C6: 0.460063536 | G6: 269.2777778 | H6: 0.4746824468 | I6: 0.03171976944 | K6: 9.796271776
A7: 459.7 | B7: 0 | C7: 0.1771313224 | G7: 255.3888889 | H7: 0.501777431 | I7: 0.01221258428 | K7: 3.771710729
A8: 434.7 | B8: -25 | C8: 0.06057676671 | G8: 241.5 | H8: 0.5288724151 | I8: 0.004176555896 | K8: 1.289879383
A9: 409.7 | B9: -50 | C9: 0.01801129525 | G9: 227.6111111 | H9: 0.5559673993 | I9: 0.001241815724 | K9: 0.3835199479
A10: 384.7 | B10: -75 | C10: 0.004532906062 | G10: 213.7222222 | H10: 0.5830623835 | I10: 0.0003125279966 | K10: 0.09652053739
A11: 359.7 | B11: -100 | C11: 0.0009333314915 | G11: 199.8333333 | H11: 0.6101573677 | I11: 6.434993736e-05 | K11: 0.01987370924

Sheet MEG
F1: Heat Capacity of Glycol
A2: °F | B2: 100 wt% | C2: 80 | D2: 75 | E2: 70 | F2: 65 | G2: 62.5 | H2: 60 | I2: 55 | J2: 50 | K2: 45 | L2: 40 | M2: 20 | N2: 10
A4: 60 | B4: 0.563 | C4: 0.66 | E4: =(C4+H4)/2 -> 0.7085 | G4: =H4+(C4-H4)*2.5/20 -> 0.744875 | H4: 0.757 | J4: =(H4+L4)/2 -> 0.806 | L4: 0.855 | M4: 0.94 | N4: 0.976
A5: 80 | B5: 0.576 | C5: 0.673 | E5: 0.721 | G5: 0.757 | H5: 0.769 | J5: 0.8165 | L5: 0.864 | M5: 0.942 | N5: 0.977
A6: 100 | B6: 0.59 | C6: 0.685 | E6: 0.7325 | G6: 0.768125 | H6: 0.78 | J6: 0.826 | L6: 0.872 | M6: 0.944 | N6: 0.978
A7: 120 | B7: 0.604 | C7: 0.697 | E7: 0.7445 | G7: 0.780125 | H7: 0.792 | J7: 0.836 | L7: 0.88 | M7: 0.946 | N7: 0.979
A8: 140 | B8: 0.618 | C8: 0.71 | E8: 0.7565 | G8: 0.791375 | H8: 0.803 | J8: 0.8455 | L8: 0.888 | M8: 0.948 | N8: 0.98
A9: 160 | B9: 0.632 | C9: 0.722 | E9: 0.768 | G9: 0.8025 | H9: 0.814 | J9: 0.855 | L9: 0.896 | M9: 0.95 | N9: 0.981
A10: 180 | B10: 0.646 | C10: 0.735 | E10: 0.78 | G10: 0.81375 | H10: 0.825 | J10: 0.865 | L10: 0.905 | M10: 0.952 | N10: 0.982
A11: 200 | B11: 0.66 | C11: 0.748 | E11: 0.7925 | G11: 0.825875 | H11: 0.837 | J11: 0.8755 | L11: 0.914 | M11: 0.954 | N11: 0.982
A12: 220 | B12: 0.674 | C12: 0.761 | E12: 0.805 | G12: 0.838 | H12: 0.849 | J12: 0.8855 | L12: 0.922 | M12: 0.956 | N12: 0.983
A13: 240 | B13: 0.688 | C13: 0.774 | E13: 0.8175 | G13: 0.850125 | H13: 0.861 | J13: 0.8955 | L13: 0.93 | M13: 0.958 | N13: 0.984

Sheet TEG Activity Coef
F1: g
F2: Scauzilla | G2: Rosman | H2: Parrish | I2: Parrish | J2: t,°F | K2: a | L2: b | M2: c
A3: 0.99999 | B3: 80 | F3: =10^(-0.405/(1+0.405*A3/((1-A3)*0.356))^2) -> 0.9999999999 | G3: =EXP(-1/((0.0063*A3/(1-A3))+0.05449)^2/($B$3+459.7)) -> 0.9999999953 | H3: =EXP($L$3*(TANH($K$3*A3/($L$3*(1-A3)))-1)-$M$3*(1-A3)^2) -> 1 | J3: 80 | K3: =EXP(-12.792+0.03293*(J3+459.7)/1.8) -> 0.05401527871 | L3: =EXP(0.77377-0.00695*(J3+459.7)/1.8) -> 0.26980072 | M3: =0.88874-0.001915*(J3+459.7)/1.8 -> 0.3145591667
A4: 0.95 | F4: 0.998178307 | G4: 0.9407609266 | H4: 0.9989463351
A5: 0.9 | F5: 0.992644175 | G5: 0.8608194556 | H5: 0.9827052314
A6: 0.8 | F6: 0.9701846031 | G6: 0.7469406673 | H6: 0.9020347254
A7: 0.7 | F7: 0.9325562279 | G7: 0.6790608637 | H7: 0.834845973
A8: 0.6 | F8: 0.880459461 | G8: 0.635582767 | H8: 0.7854816699
A9: 0.5 | F9: 0.8153967733 | G9: 0.6056828343 | H9: 0.7444306928
A10: 0.4 | F10: 0.739638634 | G10: 0.5839604215 | H10: 0.7066327818
A11: 0.3 | F11: 0.6561103543 | G11: 0.5675027124 | H11: 0.6697559089
A12: 0.2 | F12: 0.56820128 | G12: 0.5546194837 | H12: 0.632784073
A13: 0.1 | F13: 0.479509822 | G13: 0.5442685073 | H13: 0.5953576646
A14: 0.09 | F14: 0.4707352939 | G14: 0.5433444348 | H14: 0.5915874905
A15: 0.08 | F15: 0.4619917765 | G15: 0.5424382268 | H15: 0.5878125983
A16: 0.07 | F16: 0.4532826037 | G16: 0.5415493737 | H16: 0.5840331204
A17: 0.06 | F17: 0.4446110651 | G17: 0.5406773853 | H17: 0.5802492052
A18: 0.05 | F18: 0.435980403 | G18: 0.5398217894 | H18: 0.5764610158
A19: 0.04 | F19: 0.4273938098 | G19: 0.5389821311 | H19: 0.5726687292
A20: 0.03 | F20: 0.4188544253 | G20: 0.5381579722 | H20: 0.5688725351
A21: 0.02 | F21: 0.4103653337 | G21: 0.5373488903 | H21: 0.5650726358
A22: 0.01 | F22: 0.4019295617 | G22: 0.5365544779 | H22: 0.5612692449
A23: 0.0001 | F23: 0.3936335821 | G23: 0.5357820742 | H23: 0.5575006689
A24: 0.1938 | H24: 0.6304782946
A25: 0.4191 | H25: 0.7137335077
A26: 0.6102 | H26: 0.7900149319
A27: 0.2961 | H27: 0.6683196605
A28: 0.503 | H28: 0.7455982702
A29: 0.6386 | H29: 0.803135924

Sheet TEG Viscosity
I2: TEG | J2: MEG | L2: Meoh
B3: a | C3: b | D3: c | E3: d | G3: Temp,°K | H3: Temp,°F | I3: Visc,cp
A4: TEG | B4: -13.8883 | C4: 3064.2 | D4: 0.020531 | E4: -1.05e-05 | F4: =G4-273.13 -> -17.74111111 | G4: =(H4+459.7)/1.8 -> 255.3888889 | H4: 0 | I4: =10^(A_teg+B_teg/$G4+C_teg*$G4+D_teg*($G4^2)) -> 466.0316488 | J4: =EXP(A_MEG+B_MEG/$G4) -> 89.63284039 | L4: =EXP(A_MeOH+B_MeOH/$G4+C_MeOH*$G4+D_MeOH*($G4^2)) -> 1.057919105
A5: MEG | B5: -7.811 | C5: 3143 | D5: 0 | E5: 0 | F5: -12.18555556 | G5: 260.9444444 | H5: 10 | I5: =10^(A_teg+B_teg/G5+C_teg*G5+D_teg*(G5^2)) -> 313.9885117 | J5: =EXP(A_MEG+B_MEG/$G5) -> 68.97260446 | L5: =EXP(A_MeOH+B_MeOH/$G5+C_MeOH*$G5+D_MeOH*($G5^2)) -> 0.9386661149
A6: MeOH | B6: -39.35 | C6: 4826 | D6: 0.1091 | E6: -0.00011274 | F6: -6.63 | G6: 266.5 | H6: 20 | I6: =10^(A_teg+B_teg/G6+C_teg*G6+D_teg*(G6^2)) -> 216.4781586 | J6: =EXP(A_MEG+B_MEG/$G6) -> 53.65748706 | L6: =EXP(A_MeOH+B_MeOH/$G6+C_MeOH*$G6+D_MeOH*($G6^2)) -> 0.8410699449
F7: -1.074444444 | G7: 272.0555556 | H7: 30 | I7: =10^(A_teg+B_teg/G7+C_teg*G7+D_teg*(G7^2)) -> 152.4979283 | J7: =EXP(A_MEG+B_MEG/$G7) -> 42.17330428 | L7: =EXP(A_MeOH+B_MeOH/$G7+C_MeOH*$G7+D_MeOH*($G7^2)) -> 0.7602721954
F8: 4.481111111 | G8: 277.6111111 | H8: 40 | I8: =10^(A_teg+B_teg/G8+C_teg*G8+D_teg*(G8^2)) -> 109.6132648 | J8: =EXP(A_MEG+B_MEG/$G8) -> 33.46810701 | L8: =EXP(A_MeOH+B_MeOH/$G8+C_MeOH*$G8+D_MeOH*($G8^2)) -> 0.6926463854
F9: 10.03666667 | G9: 283.1666667 | H9: 50 | I9: =10^(A_teg+B_teg/G9+C_teg*G9+D_teg*(G9^2)) -> 80.28944878 | J9: =EXP(A_MEG+B_MEG/$G9) -> 26.80183289 | L9: =EXP(A_MeOH+B_MeOH/$G9+C_MeOH*$G9+D_MeOH*($G9^2)) -> 0.6354496964
F10: 15.59222222 | G10: 288.7222222 | H10: 60 | I10: =10^(A_teg+B_teg/G10+C_teg*G10+D_teg*(G10^2)) -> 59.86038258 | J10: =EXP(A_MEG+B_MEG/$G10) -> 21.64762414 | L10: =EXP(A_MeOH+B_MeOH/$G10+C_MeOH*$G10+D_MeOH*($G10^2)) -> 0.5865819693
F11: 21.14777778 | G11: 294.2777778 | H11: 70 | I11: =10^(A_teg+B_teg/G11+C_teg*G11+D_teg*(G11^2)) -> 45.37683044 | J11: =EXP(A_MEG+B_MEG/$G11) -> 17.62617695 | L11: =EXP(A_MeOH+B_MeOH/$G11+C_MeOH*$G11+D_MeOH*($G11^2)) -> 0.5444165629
F12: 26.70333333 | G12: 299.8333333 | H12: 80 | I12: =10^(A_teg+B_teg/G12+C_teg*G12+D_teg*(G12^2)) -> 34.93859799 | J12: =EXP(A_MEG+B_MEG/$G12) -> 14.46150472 | L12: =EXP(A_MeOH+B_MeOH/$G12+C_MeOH*$G12+D_MeOH*($G12^2)) -> 0.50768008
F13: 32.25888889 | G13: 305.3888889 | H13: 90 | I13: =10^(A_teg+B_teg/G13+C_teg*G13+D_teg*(G13^2)) -> 27.29909361 | J13: =EXP(A_MEG+B_MEG/$G13) -> 11.95076777 | L13: =EXP(A_MeOH+B_MeOH/$G13+C_MeOH*$G13+D_MeOH*($G13^2)) -> 0.4753657945
F14: 37.81444444 | G14: 310.9444444 | H14: 100 | I14: =10^(A_teg+B_teg/G14+C_teg*G14+D_teg*(G14^2)) -> 21.62649646 | J14: =EXP(A_MEG+B_MEG/$G14) -> 9.943459063 | L14: =EXP(A_MeOH+B_MeOH/$G14+C_MeOH*$G14+D_MeOH*($G14^2)) -> 0.4466706227
F15: 43.37 | G15: 316.5 | H15: 110 | I15: =10^(A_teg+B_teg/G15+C_teg*G15+D_teg*(G15^2)) -> 17.35679215 | J15: =EXP(A_MEG+B_MEG/$G15) -> 8.326887455 | L15: =EXP(A_MeOH+B_MeOH/$G15+C_MeOH*$G15+D_MeOH*($G15^2)) -> 0.4209487492
F16: 48.92555556 | G16: 322.0555556 | H16: 120 | I16: =10^(A_teg+B_teg/G16+C_teg*G16+D_teg*(G16^2)) -> 14.10173067 | J16: =EXP(A_MEG+B_MEG/$G16) -> 7.015947595 | L16: =EXP(A_MeOH+B_MeOH/$G16+C_MeOH*$G16+D_MeOH*($G16^2)) -> 0.397677165
F17: 54.48111111 | G17: 327.6111111 | H17: 130 | I17: =10^(A_teg+B_teg/G17+C_teg*G17+D_teg*(G17^2)) -> 11.59021323 | J17: =EXP(A_MEG+B_MEG/$G17) -> 5.94583936 | L17: =EXP(A_MeOH+B_MeOH/$G17+C_MeOH*$G17+D_MeOH*($G17^2)) -> 0.376429819
F18: 60.03666667 | G18: 333.1666667 | H18: 140 | I18: =10^(A_teg+B_teg/G18+C_teg*G18+D_teg*(G18^2)) -> 9.630373723 | J18: =EXP(A_MEG+B_MEG/$G18) -> 5.066837514 | L18: =EXP(A_MeOH+B_MeOH/$G18+C_MeOH*$G18+D_MeOH*($G18^2)) -> 0.3568580565
F19: 65.59222222 | G19: 338.7222222 | H19: 150 | I19: =10^(A_teg+B_teg/G19+C_teg*G19+D_teg*(G19^2)) -> 8.084679325 | J19: =EXP(A_MEG+B_MEG/$G19) -> 4.340500513 | L19: =EXP(A_MeOH+B_MeOH/$G19+C_MeOH*$G19+D_MeOH*($G19^2)) -> 0.3386756854
F20: 71.14777778 | G20: 344.2777778 | H20: 160 | I20: =10^(A_teg+B_teg/G20+C_teg*G20+D_teg*(G20^2)) -> 6.853347069 | J20: =EXP(A_MEG+B_MEG/$G20) -> 3.736898882 | L20: =EXP(A_MeOH+B_MeOH/$G20+C_MeOH*$G20+D_MeOH*($G20^2)) -> 0.3216474768
F21: 76.70333333 | G21: 349.8333333 | H21: 170 | I21: =10^(A_teg+B_teg/G21+C_teg*G21+D_teg*(G21^2)) -> 5.86314971 | J21: =EXP(A_MEG+B_MEG/$G21) -> 3.232572396 | L21: =EXP(A_MeOH+B_MeOH/$G21+C_MeOH*$G21+D_MeOH*($G21^2)) -> 0.3055802283
F22: 82.25888889 | G22: 355.3888889 | H22: 180 | I22: =10^(A_teg+B_teg/G22+C_teg*G22+D_teg*(G22^2)) -> 5.059762529 | J22: =EXP(A_MEG+B_MEG/$G22) -> 2.809012637 | L22: =EXP(A_MeOH+B_MeOH/$G22+C_MeOH*$G22+D_MeOH*($G22^2)) -> 0.2903157507
F23: 87.81444444 | G23: 360.9444444 | H23: 190 | I23: =10^(A_teg+B_teg/G23+C_teg*G23+D_teg*(G23^2)) -> 4.402467196 | J23: =EXP(A_MEG+B_MEG/$G23) -> 2.451527382 | L23: =EXP(A_MeOH+B_MeOH/$G23+C_MeOH*$G23+D_MeOH*($G23^2)) -> 0.2757253024
F24: 93.37 | G24: 366.5 | H24: 200 | I24: =10^(A_teg+B_teg/G24+C_teg*G24+D_teg*(G24^2)) -> 3.86044428 | J24: =EXP(A_MEG+B_MEG/$G24) -> 2.148384651 | L24: =EXP(A_MeOH+B_MeOH/$G24+C_MeOH*$G24+D_MeOH*($G24^2)) -> 0.2617051167
F25: 98.92555556 | G25: 372.0555556 | H25: 210 | I25: =10^(A_teg+B_teg/G25+C_teg*G25+D_teg*(G25^2)) -> 3.410149233 | J25: =EXP(A_MEG+B_MEG/$G25) -> 1.890163121 | L25: =EXP(A_MeOH+B_MeOH/$G25+C_MeOH*$G25+D_MeOH*($G25^2)) -> 0.2481727529
F26: 104.4811111 | G26: 377.6111111 | H26: 220 | I26: =10^(A_teg+B_teg/G26+C_teg*G26+D_teg*(G26^2)) -> 3.03343571 | J26: =EXP(A_MEG+B_MEG/$G26) -> 1.669255904 | L26: =EXP(A_MeOH+B_MeOH/$G26+C_MeOH*$G26+D_MeOH*($G26^2)) -> 0.2350640712
F27: 110.0366667 | G27: 383.1666667 | H27: 230 | I27: =10^(A_teg+B_teg/G27+C_teg*G27+D_teg*(G27^2)) -> 2.716199931 | J27: =EXP(A_MEG+B_MEG/$G27) -> 1.479489099 | L27: =EXP(A_MeOH+B_MeOH/$G27+C_MeOH*$G27+D_MeOH*($G27^2)) -> 0.2223306755
F28: 115.5922222 | G28: 388.7222222 | H28: 240 | I28: =10^(A_teg+B_teg/G28+C_teg*G28+D_teg*(G28^2)) -> 2.447392083 | J28: =EXP(A_MEG+B_MEG/$G28) -> 1.315826782 | L28: =EXP(A_MeOH+B_MeOH/$G28+C_MeOH*$G28+D_MeOH*($G28^2)) -> 0.2099377097
F29: 121.1477778 | G29: 394.2777778 | H29: 250 | I29: =10^(A_teg+B_teg/G29+C_teg*G29+D_teg*(G29^2)) -> 2.218288797 | J29: =EXP(A_MEG+B_MEG/$G29) -> 1.174141532 | L29: =EXP(A_MeOH+B_MeOH/$G29+C_MeOH*$G29+D_MeOH*($G29^2)) -> 0.19786192
F30: 126.7033333 | G30: 399.8333333 | H30: 260 | I30: =10^(A_teg+B_teg/G30+C_teg*G30+D_teg*(G30^2)) -> 2.021953113 | J30: =EXP(A_MEG+B_MEG/$G30) -> 1.051034927 | L30: =EXP(A_MeOH+B_MeOH/$G30+C_MeOH*$G30+D_MeOH*($G30^2)) -> 0.1860899191
F31: 132.2588889 | G31: 405.3888889 | H31: 270 | I31: =10^(A_teg+B_teg/G31+C_teg*G31+D_teg*(G31^2)) -> 1.852830263 | J31: =EXP(A_MEG+B_MEG/$G31) -> 0.9436963746 | L31: =EXP(A_MeOH+B_MeOH/$G31+C_MeOH*$G31+D_MeOH*($G31^2)) -> 0.1746166052
F32: 137.8144444 | G32: 410.9444444 | H32: 280 | I32: =10^(A_teg+B_teg/G32+C_teg*G32+D_teg*(G32^2)) -> 1.706442717 | J32: =EXP(A_MEG+B_MEG/$G32) -> 0.8497915212 | L32: =EXP(A_MeOH+B_MeOH/$G32+C_MeOH*$G32+D_MeOH*($G32^2)) -> 0.1634437035
F33: 143.37 | G33: 416.5 | H33: 290 | I33: =10^(A_teg+B_teg/G33+C_teg*G33+D_teg*(G33^2)) -> 1.579158361 | J33: =EXP(A_MEG+B_MEG/$G33) -> 0.7673735931 | L33: =EXP(A_MeOH+B_MeOH/$G33+C_MeOH*$G33+D_MeOH*($G33^2)) -> 0.15257841
F34: 148.9255556 | G34: 422.0555556 | H34: 300 | I34: =10^(A_teg+B_teg/G34+C_teg*G34+D_teg*(G34^2)) -> 1.468012981 | J34: =EXP(A_MEG+B_MEG/$G34) -> 0.6948126272 | L34: =EXP(A_MeOH+B_MeOH/$G34+C_MeOH*$G34+D_MeOH*($G34^2)) -> 0.1420321233
F35: 154.4811111 | G35: 427.6111111 | H35: 310 | I35: =10^(A_teg+B_teg/G35+C_teg*G35+D_teg*(G35^2)) -> 1.370573388 | J35: =EXP(A_MEG+B_MEG/$G35) -> 0.6307387149 | L35: =EXP(A_MeOH+B_MeOH/$G35+C_MeOH*$G35+D_MeOH*($G35^2)) -> 0.1318192613
F36: 160.0366667 | G36: 433.1666667 | H36: 320 | I36: =10^(A_teg+B_teg/G36+C_teg*G36+D_teg*(G36^2)) -> 1.284831162 | J36: =EXP(A_MEG+B_MEG/$G36) -> 0.5739962828 | L36: =EXP(A_MeOH+B_MeOH/$G36+C_MeOH*$G36+D_MeOH*($G36^2)) -> 0.1219561602
F37: 165.5922222 | G37: 438.7222222 | H37: 330 | I37: =10^(A_teg+B_teg/G37+C_teg*G37+D_teg*(G37^2)) -> 1.209119654 | J37: =EXP(A_MEG+B_MEG/$G37) -> 0.5236071047 | L37: =EXP(A_MeOH+B_MeOH/$G37+C_MeOH*$G37+D_MeOH*($G37^2)) -> 0.1124600613
F38: 171.1477778 | G38: 444.2777778 | H38: 340 | I38: =10^(A_teg+B_teg/G38+C_teg*G38+D_teg*(G38^2)) -> 1.142048727 | J38: =EXP(A_MEG+B_MEG/$G38) -> 0.4787402525 | L38: =EXP(A_MeOH+B_MeOH/$G38+C_MeOH*$G38+D_MeOH*($G38^2)) -> 0.1033481887
F39: 176.7033333 | G39: 449.8333333 | H39: 350 | I39: =10^(A_teg+B_teg/G39+C_teg*G39+D_teg*(G39^2)) -> 1.082453174 | J39: =EXP(A_MEG+B_MEG/$G39) -> 0.4386875871 | L39: =EXP(A_MeOH+B_MeOH/$G39+C_MeOH*$G39+D_MeOH*($G39^2)) -> 0.09463692679
F40: 182.2588889 | G40: 455.3888889 | H40: 360 | I40: =10^(A_teg+B_teg/G40+C_teg*G40+D_teg*(G40^2)) -> 1.029351683 | J40: =EXP(A_MEG+B_MEG/$G40) -> 0.4028436889 | L40: =EXP(A_MeOH+B_MeOH/$G40+C_MeOH*$G40+D_MeOH*($G40^2)) -> 0.0863411023
F41: 187.8144444 | G41: 460.9444444 | H41: 370 | I41: =10^(A_teg+B_teg/G41+C_teg*G41+D_teg*(G41^2)) -> 0.981914038 | J41: =EXP(A_MEG+B_MEG/$G41) -> 0.3706893628 | L41: =EXP(A_MeOH+B_MeOH/$G41+C_MeOH*$G41+D_MeOH*($G41^2)) -> 0.07847337833
F42: 193.37 | G42: 466.5 | H42: 380 | I42: =10^(A_teg+B_teg/G42+C_teg*G42+D_teg*(G42^2)) -> 0.9394347503 | J42: =EXP(A_MEG+B_MEG/$G42) -> 0.3417780314 | L42: =EXP(A_MeOH+B_MeOH/$G42+C_MeOH*$G42+D_MeOH*($G42^2)) -> 0.07104376334
F43: 198.9255556 | G43: 472.0555556 | H43: 390 | I43: =10^(A_teg+B_teg/G43+C_teg*G43+D_teg*(G43^2)) -> 0.901311757 | J43: =EXP(A_MEG+B_MEG/$G43) -> 0.3157244715 | L43: =EXP(A_MeOH+B_MeOH/$G43+C_MeOH*$G43+D_MeOH*($G43^2)) -> 0.0640592381
F44: 204.4811111 | G44: 477.6111111 | H44: 400 | I44: =10^(A_teg+B_teg/G44+C_teg*G44+D_teg*(G44^2)) -> 0.8670291307 | J44: =EXP(A_MEG+B_MEG/$G44) -> 0.2921954576 | L44: =EXP(A_MeOH+B_MeOH/$G44+C_MeOH*$G44+D_MeOH*($G44^2)) -> 0.05752350001

Sheet TEG Vapor Pressure
B2: a | C2: b | D2: c | F2: P | G2: P | H2: °C | I2: t | L2: water
A3: torr,°K | B3: 17097.1 | C3: 9.652867 | D3: 0 | F3: =10^((-0.2185*B3/((I3+459.7)/1.8)+C3))*0.01934 -> 22.1280594 | I3: 560
A4: mmhg,°K | B4: 8.702614 | C4: 2852.623 | D4: 210.398 | F4: =EXP(B4-C4/((I4+459.7)/1.8+D4))*0.01934 -> 2.960099033 | I4: 560
A5: Psia,°F | B5: 12.0229 | C5: -6987 | D5: 202.7 | F5: =EXP(B5+C5/(I5+D5)) -> 17.49690773 | I5: 560 | K5: 32.018 | L5: 0.08865
A6: Psia,°F | B6: 13.1222 | C6: -8395.32 | D6: 258.7 | F6: 17.59734115 | I6: 560 | K6: 35 | L6: 0.09991
K7: 40 | L7: 0.12163
K8: 50 | L8: 0.17796
K9: 60 | L9: 0.25611
A10: Psia,°F | B10: 12.0229 | C10: -6987 | D10: 202.7 | F10: =EXP(B$10+C$10/(G10+D$10))*51.71 -> 8.454299427e-06 | G10: 50 | I10: =1000/(G10+459.7) -> 1.961938395 | K10: 70 | L10: 0.36292
F11: 0.0008138711665 | G11: 100 | I11: 1.786671431 | K11: 80 | L11: 0.50683
F12: 0.02146169261 | G12: 150 | I12: 1.640150894 | K12: 90 | L12: 0.69813
F13: 0.2511176523 | G13: 200 | I13: 1.515840534 | K13: 100 | L13: 0.94294
F14: 1.706575777 | G14: 250 | I14: 1.409046076 | K14: 110 | L14: 1.275
F15: 7.921697337 | G15: 300 | I15: 1.316309069 | K15: 120 | L15: 1.6927
F16: 27.8539135 | G16: 350 | I16: 1.235025318 | K16: 130 | L16: 2.223
F17: 79.49697189 | G17: 400 | I17: 1.163196464 | K17: 140 | L17: 2.8892
F18: 193.2116777 | G18: 450 | I18: 1.099263493 | K18: 150 | L18: 3.7184
F19: 413.8379542 | G19: 500 | I19: 1.041992289 | K19: 160 | L19: 4.7414
F20: 801.0861418 | G20: 550 | I20: 0.9903931861 | K20: 170 | L20: 5.9926
F21: 904.7650987 | G21: 560 | I21: 0.9806805923 | K21: 180 | L21: 7.511
F22: =EXP(B$10+C$10/(G22+D$10)) -> 1.242155779e-06 | G22: 70 | K22: 190 | L22: 9.34
F23: 3.074568955e-06 | G23: 80 | K23: 200 | L23: 11.526
F24: 7.15315147e-06 | G24: 90 | K24: 210 | L24: 14.123
F25: 1.573914458e-05 | G25: 100
F26: 3.292758584e-05 | G26: 110
F27: 6.580670171e-05 | G27: 120
C31: below data all from the Chemistry and Physics Handbook
E33: 1000/t,°R | F33: Vapor Press | G33: t, °F
E34: =1000/(459.7+G34) -> 2.175331738 | F34: =10^((-0.2185*B$36/((G34+459.7)/1.8)+C$36)) -> 1.060002249e-05 | G34: 0 | H34: =(G34-32)/1.8 -> -17.77777778
C35: teg | E35: 1.961938395 | F35: 0.0002885528627 | G35: 50 | H35: 10
A36: torr,°K | B36: 17097.1 | C36: 9.652867 | D36: 0 | E36: 1.786671431 | F36: 0.004352824735 | G36: 100 | H36: 37.77777778
E37: 1.725030188 | F37: 0.01130484833 | G37: 120 | H37: 48.88888889
E38: 1.640150894 | F38: 0.0420743757 | G38: 150 | H38: 65.55555556
E39: 1.515840534 | F39: 0.2883477205 | G39: 200 | H39: 93.33333333
E40: 1.409046076 | F40: 1.506722821 | G40: 250 | H40: 121.1111111
E41: 1.316309069 | F41: 6.333209262 | G41: 300 | H41: 148.8888889
E42: 1.235025318 | F42: 22.29458067 | G42: 350 | H42: 176.6666667
E43: 1.163196464 | F43: 67.79494503 | G43: 400 | H43: 204.4444444
C47: deg
A48: torr,°K | B48: 16146.7 | C48: 9.668173 | D48: 0 | E48: =1000/(459.7+G48) -> 2.175331738 | F48: =10^((-0.2185*B$48/((G48+459.7)/1.8)+C$48)) -> 7.140606221e-05 | G48: 0 | H48: =(G48-32)/1.8 -> -17.77777778
E49: 1.961938395 | F49: 0.001617666127 | G49: 50 | H49: 10
E50: 1.786671431 | F50: 0.02098559273 | G50: 100 | H50: 37.77777778
E51: 1.725030188 | F51: 0.05168610152 | G51: 120 | H51: 48.88888889
E52: 1.640150894 | F52: 0.1788131642 | G52: 150 | H52: 65.55555556
E53: 1.515840534 | F53: 1.101113462 | G53: 200 | H53: 93.33333333
E54: 1.409046076 | F54: 5.248436749 | G54: 250 | H54: 121.1111111
E55: 1.316309069 | F55: 20.36835985 | G55: 300 | H55: 148.8888889
E56: 1.235025318 | F56: 66.85721584 | G56: 350 | H56: 176.6666667
E57: 1.163196464 | F57: 191.1160751 | G57: 400 | H57: 204.4444444
C63: EG | E63: =1000/(459.7+G63) -> 2.440810349 | F63: =10^((-0.2185*B$64/((G63+459.7)/1.8)+C$64)) -> 8.394445331e-05 | G63: -50 | H63: =(G63-32)/1.8 -> -45.55555556
A64: torr,°K | B64: 14032.4 | C64: 9.394685 | D64: 0 | E64: 2.175331738 | F64: 0.002449927911 | G64: 0 | H64: -17.77777778
E65: 1.961938395 | F65: 0.03688578111 | G65: 50 | H65: 10
E66: 1.786671431 | F66: 0.3420954948 | G66: 100 | H66: 37.77777778
E67: 1.725030188 | F67: 0.7487586576 | G67: 120 | H67: 48.88888889
E68: 1.640150894 | F68: 2.201840402 | G68: 150 | H68: 65.55555556
E69: 1.515840534 | F69: 10.68679846 | G69: 200 | H69: 93.33333333
E70: 1.409046076 | F70: 41.51835481 | G70: 250 | H70: 121.1111111
E71: 1.316309069 | F71: 134.911938 | G71: 300 | H71: 148.8888889
E72: 1.235025318 | F72: 379.0100841 | G72: 350 | H72: 176.6666667
E73: 1.163196464 | F73: 944.2132947 | G73: 400 | H73: 204.4444444
C77: Methanol
E78: =1000/(459.7+G78) -> 2.780094523 | F78: =10^((-0.2185*B$79/((G78+459.7)/1.8)+C$79)) -> 0.05029962191 | G78: -100 | H78: =(G78-32)/1.8 -> -73.33333333
A79: torr,°K | B79: 9377.2 | C79: 8.9547 | D79: 0 | E79: 2.440810349 | F79: 0.8971450301 | G79: -50 | H79: -45.55555556
E80: 2.175331738 | F80: 8.549914651 | G80: 0 | H80: -17.77777778
E81: 1.961938395 | F81: 52.35614802 | G81: 50 | H81: 10
E82: 1.786671431 | F82: 231.9324402 | G82: 100 | H82: 37.77777778
E83: 1.725030188 | F83: 391.4692501 | G83: 120 | H83: 48.88888889
E84: 1.640150894 | F84: 804.8908104 | G84: 150 | H84: 65.55555556
F86: water
E88: =1000/(459.7+G88) -> 2.151925974 | F88: 1.436 | G88: 5 | H88: =(G88-32)/1.8 -> -15
E89: 2.033760423 | F89: 4.579 | G89: 32 | H89: 0
D90: 0.17811 | E90: 1.961938395 | F90: =D90*51.71 -> 9.2100681 | G90: 50 | H90: 10
D91: 0.9492 | E91: 1.786671431 | F91: 49.083132 | G91: 100 | H91: 37.77777778
D92: 3.718 | E92: 1.640150894 | F92: 192.25778 | G92: 150 | H92: 65.55555556
D93: 11.526 | E93: 1.515840534 | F93: 596.00946 | G93: 200 | H93: 93.33333333
D94: 29.825 | F94: 760 | H94: 100
D95: 67.013

Sheet TEG Dehy
C2: Calculates TEG Trayed column performance
A3: Input
B4: Gas Rate, MMSCFD | C4: 326 | D4: 240 | E4: 550
B5: P, psia | C5: 1300 | D5: 600 | E5: 650
B6: T, °F | C6: 115 | D6: 90 | E6: 90
B7: Z, compressibility | C7: 0.87 | D7: 0.89 | E7: 0.89
B8: Mw | C8: 19.47 | D8: 22.5 | E8: 22.89
B9: Lbw/MMSCFD,in | C9: 76 | D9: 60 | E9: 45
B10: Lbw/MMSCFD,out | C10: 1.32 | D10: 0.1 | E10: 0.1
B11: Reboiler btu/gal | C11: 1400 | D11: 1400 | E11: 1400
B12: Number of Theoretical Trays | C12: 3 | D12: 4 | E12: 4
B13: Contactor K value | C13: 0.195 | D13: 0.16 | E13: 0.23
B14: Contactor Fs | C14: 2.6 | D14: 2.6 | E14: 2.9
B15: TEG Circ Rate Lean TEG, gpm | C15: 25 | D15: 60 | E15: 30
B16: Lean TEG Wt% | C16: 99.5 | D16: 99.97 | E16: 99.975
B17: Gas Heat capacity, btu/lb-°F | C17: 0.55 | D17: 0.55 | E17: 0.55
A21: Output
B22: Contactor Tray Dia, Ft | C22: 8.490142387 | D22: 9.980176308 | E22: 12.41681204
B23: Contactor Packing Dia, Ft | C23: 6.604329379 | D23: 7.089510963 | E23: 10.00356894
B24: Rich TEG, Wt % | C24: 92.78205391 | D24: 98.22024019 | E24: 94.209048
B25: activity coef | C25: 0.6181249503 | D25: 0.5725749793 | E25: 0.5717728193
B26: K value | C26: 0.001076379639 | D26: 0.0007719456591 | E26: 0.0005684012422
B27: A, L/KV | C27: 3.360912185 | D27: 12.37641108 | E27: 4.047288112
B28: Lbw/MMSCF in eql with lean TEG | C28: 2.054293038 | D28: 0.09143650887 | E28: 0.05612619486
B29: Lbw/MMSCF in Product gas | C29: 3.433347064 | D29: 0.09378355729 | E29: 0.1823564641
B30: Gas Temp out, °F | C30: 117.9906521 | D30: 92.07573467 | E30: 91.52942464
B31: gal lean teg/lbw absorbed | C31: 1.478701766 | D31: 6.010016694 | E31: 1.749341972
B32: Reboiler Duty, MMBTU/Hr | C32: 2100000 | D32: 5040000 | E32: 2520000
B33: Still Col Dia, ft | C33: 1.666666667 | D33: 2.581988897 | E33: 1.825741858
B34: Stripping Col Dia, ft | C34: 1.25 | D34: 1.936491673 | E34: 1.369306394
B35: Gas density, Lb/Ft³ | C35: 4.717271378 | D35: 2.571349221 | E35: 2.833912547
B36: Lean TEG
A37: TEG | B37: lb/hr | C37: 13939.95 | D37: 33613.9128 | E37: 16807.797
B38: moles/hr | C38: 96.34054333 | D38: 224.5857561 | E38: 112.2574086
A39: Water | B39: lb/hr | C39: 70.05 | D39: 10.0872 | E39: 4.203
B40: moles/hr | C40: 3.891666667 | D40: 0.5604 | E40: 0.2335
B41: Rich TEG
A42: TEG | B42: lb/hr | C42: 13939.95 | D42: 33613.9128 | E42: 16807.797
B43: moles/hr | C43: 96.34054333 | D43: 224.5857561 | E43: 112.2574086
A44: Water | B44: lb/hr | C44: 1084.453333 | D44: 609.0872 | E44: 1033.161333
B45: moles/hr | C45: 60.24740741 | D45: 33.83817778 | E45: 57.39785185

Sheet TEG Reboiler
E2: TEG Regenerator Heat Balance
E4: Design | G4: Current
A5: Dehydrated Gas, MMSCFD | E5: 240 | F5: 500 | G5: 500 | H5: 700 | I5: 800 | J5: 500 | K5: 700 | L5: 800 | M5: 50 | N5: 15 | O5: 15 | P5: 15 | R5: Dehydrated Gas, MMSCFD
A6: Water Content, lb/mmscfd | E6: 231 | F6: 58 | G6: 58 | H6: 58 | I6: 58 | J6: 58 | K6: 58 | L6: 58 | M6: 35 | N6: 95 | O6: 95 | P6: 95 | R6: Water Content, lb/mmscfd
A7: Rich TEG In | C7: °F | E7: 287 | F7: 287 | G7: 280 | H7: 280 | I7: 280 | J7: 280 | K7: 280 | L7: 280 | M7: 280 | N7: 280 | O7: 280 | P7: 270 | R7: Rich TEG In | T7: °F
B8: lb/hr | C8: (Water) | E8: =E5*E6/24 -> 2310 | F8: 1208.333333 | G8: 1208.333333 | H8: 1691.666667 | I8: 1933.333333 | J8: 1208.333333 | K8: 1691.666667 | L8: 1933.333333 | M8: 72.91666667 | N8: 59.375 | O8: 59.375 | P8: 59.375 | S8: lb/hr | T8: (Water)
A10: Stripping Gas in | C10: scf/gal | E10: 3 | F10: 3 | G10: 3 | H10: 3 | I10: 3 | J10: 3 | K10: 3 | L10: 3 | M10: 3 | N10: 3 | O10: 3 | P10: 3 | R10: Stripping Gas in | T10: scf/gal
C11: scfm | E11: =E10*E14 -> 135 | F11: 90 | G11: 90 | H11: 90 | I11: 90 | J11: 120 | K11: 120 | L11: 120 | M11: 9 | N11: 9 | O11: 8.90625 | P11: 8.90625 | T11: scfm
C12: lb/hr | E12: =E11/379.5*22.5*60 -> 480.2371542 | F12: 320.1581028 | G12: 320.1581028 | H12: 320.1581028 | I12: 320.1581028 | J12: 426.8774704 | K12: 426.8774704 | L12: 426.8774704 | M12: 32.01581028 | N12: 32.01581028 | O12: =O11/379.5*Mw_gas*60 -> 31.68231225 | P12: =P11/379.5*Mw_gas*60 -> 31.68231225 | T12: lb/hr
C13: Temp | E13: 50 | F13: 50 | G13: 50 | H13: 50 | I13: 50 | J13: 50 | K13: 50 | L13: 50 | M13: 50 | N13: 50 | O13: 50 | P13: 50 | T13: Temp
A14: Lean TEG out, gpm | E14: 45 | F14: 30 | G14: 30 | H14: 30 | I14: 30 | J14: 40 | K14: 40 | L14: 40 | M14: 3 | N14: 3 | O14: =O5*O6*3/1440 -> 2.96875 | P14: 2.96875 | R14: Lean TEG out, gpm
B15: lb/hr | E15: =E14*60*9.34 -> 25218 | F15: 16812 | G15: 16812 | H15: 16812 | I15: 16812 | J15: 22416 | K15: 22416 | L15: 22416 | M15: 1681.2 | N15: 1681.2 | O15: 1663.6875 | P15: 1663.6875 | S15: lb/hr
A16: Effluent Gas out | E16: 174 | F16: 174 | G16: 200 | H16: 174 | I16: 174 | J16: 200 | K16: 174 | L16: 174 | M16: 174 | N16: 174 | O16: 194.6 | P16: 194.6 | R16: Effluent Gas out
B17: water out | E17: 174 | F17: 174 | G17: 174 | H17: 174 | I17: 174 | J17: 174 | K17: 174 | L17: 174 | M17: 174 | N17: 174 | O17: 194.6 | P17: 194.6 | S17: water out
B18: lb/hr Gas | O18: =O$10*O$14*60*Mw_gas/379.5 -> 31.68231225 | P18: =P$10*P$14*60*Mw_gas/379.5 -> 31.68231225
A19: Reflux | C19: in | E19: 140 | F19: 85 | G19: 85 | H19: 85 | I19: 85 | J19: 85 | K19: 85 | L19: 85 | M19: 85 | N19: 85 | O19: 85 | P19: 85 | R19: Reflux | T19: in
C20: out | E20: 150 | F20: 130 | G20: 130 | H20: 130 | I20: 130 | J20: 130 | K20: 130 | L20: 130 | M20: 130 | N20: 130 | O20: 110 | P20: 110 | T20: out
B22: Water heat, | E22: =E8*($E$35+(E17-E7)*$E$34)/1000000 -> 2.04897 | F22: 1.071791667 | G22: 1.08025 | H22: 1.51235 | I22: 1.7284 | J22: 1.08025 | K22: 1.51235 | L22: 1.7284 | M22: 0.0651875 | N22: 0.05308125 | O22: 0.054304375 | P22: =P8*(Latent_Ht+(P17-P7)*cp_water)/1000000 -> 0.054898125 | S22: Water heat,
B23: Glycol heat | E23: =E15*$E$31*(400-E7)/1000000 -> 1.88075844 | F23: 1.25383896 | G23: 1.3315104 | H23: 1.3315104 | I23: 1.3315104 | J23: 1.7753472 | K23: 1.7753472 | L23: 1.7753472 | M23: 0.13315104 | N23: 0.13315104 | O23: 0.13176405 | P23: =P15*cp_h_teg*(385-P7)/1000000 -> 0.1262738813 | S23: Glycol heat
B24: Gas heat | E24: =cp_gas*E12*(E16-E13)/1000000 -> 0.02977470356 | F24: =cp_gas*F12*(F16-F13)/1000000 -> 0.01984980237 | G24: =cp_gas*G12*(G16-G13)/1000000 -> 0.02401185771 | H24: =cp_gas*H12*(H16-H13)/1000000 -> 0.01984980237 | I24: =cp_gas*I12*(I16-I13)/1000000 -> 0.01984980237 | J24: =cp_gas*J12*(J16-J13)/1000000 -> 0.03201581028 | K24: =cp_gas*K12*(K16-K13)/1000000 -> 0.02646640316 | L24: =cp_gas*L12*(L16-L13)/1000000 -> 0.02646640316 | M24: =cp_gas*M12*(M16-M13)/1000000 -> 0.001984980237 | N24: =cp_gas*N12*(N16-N13)/1000000 -> 0.001984980237 | O24: =cp_gas*O12*(O16-O13)/1000000 -> 0.002290631176 | P24: =P12*cp_gas*(P16-P13)/1000000 -> 0.002290631176 | S24: Gas heat
B25: reflux | E25: =E14*9.34*60*$E$32*(E20-E19)/1000000 -> 0.138699 | F25: 0.416097 | G25: 0.416097 | H25: 0.416097 | I25: 0.416097 | J25: 0.554796 | K25: 0.554796 | L25: 0.554796 | M25: 0.0416097 | N25: 0.0416097 | O25: 0.02287570313 | P25: =P14*9.34*60*cp_r_teg*(P20-P19)/1000000 -> 0.02287570313 | S25: reflux
B26: desup, ovhd
B27: Total | E27: =SUM(E22:E25) -> 4.098202144 | F27: 2.761577429 | G27: 2.851869258 | H27: 3.279807202 | I27: 3.495857202 | J27: 3.44240901 | K27: 3.868959603 | L27: 4.085009603 | M27: 0.2419332202 | N27: 0.2298269702 | O27: 0.2112347593 | P27: 0.2063383406 | S27: Total
C30: mw Gas | E30: 22.5
C31: Cp TEG | E31: 0.66
C32: Cp TEG | E32: 0.55
C33: cp gas | E33: 0.5
C34: cp water | E34: 1
C35: latent heat water | E35: 1000
C36: cp hot teg | E36: 0.66

Sheet TEG, CP
B3: 0 | C3: =0.2936+0.0004439*(459.7+B3) -> 0.49766083
B4: 10 | C4: 0.50209983
B5: 20 | C5: 0.50653883
B6: 30 | C6: 0.51097783
B7: 40 | C7: 0.51541683
B8: 50 | C8: 0.51985583
B9: 60 | C9: 0.52429483
B10: 70 | C10: 0.52873383
B11: 80 | C11: 0.53317283
B12: 90 | C12: 0.53761183
B13: 100 | C13: 0.54205083
B14: 110 | C14: 0.54648983
B15: 120 | C15: 0.55092883
B16: 130 | C16: 0.55536783
B17: 140 | C17: 0.55980683
B18: 150 | C18: 0.56424583
B19: 160 | C19: 0.56868483
B20: 170 | C20: 0.57312383
B21: 180 | C21: 0.57756283
B22: 190 | C22: 0.58200183
B23: 200 | C23: 0.58644083
B24: 210 | C24: 0.59087983
B25: 220 | C25: 0.59531883
B26: 230 | C26: 0.59975783
B27: 240 | C27: 0.60419683
B28: 250 | C28: 0.60863583
B29: 260 | C29: 0.61307483
B30: 270 | C30: 0.61751383
B31: 280 | C31: 0.62195283
B32: 290 | C32: 0.62639183
B33: 300 | C33: 0.63083083
B34: 310 | C34: 0.63526983
B35: 320 | C35: 0.63970883
B36: 330 | C36: 0.64414783
B37: 340 | C37: 0.64858683
B38: 350 | C38: 0.65302583
B39: 360 | C39: 0.65746483
B40: 370 | C40: 0.66190383
B41: 380 | C41: 0.66634283
B42: 390 | C42: 0.67078183
B43: 400 | C43: 0.67522083
B44: 410 | C44: 0.67965983
B45: 420 | C45: 0.68409883
B46: 430 | C46: 0.68853783
